[Event "Early-Titled-Tuesday-Blitz-May-07-2024"]
[Site "Chess.com"]
[Date "2024.05.07"]
[Round "4"]
[White "ChristopherYoo"]
[Black "FLYD"]
[Result "1-0"]
[WhiteElo "3006"]
[BlackElo "2019"]
[TimeControl "180+1"]
[EndTime "8:42:53 PDT"]
[Termination "ChristopherYoo won by resignation"]

1. b3 {[%clk 0:03:00.9]} 1... e5 {[%clk 0:02:58.3]} 2. Bb2 {[%clk 0:02:59.6]}
2... Nc6 {[%clk 0:02:58.9]} 3. e3 {[%clk 0:02:59.9]} 3... d5 {[%clk 0:02:58.3]}
4. Bb5 {[%clk 0:02:59.7]} 4... Bd6 {[%clk 0:02:58.2]} 5. f4 {[%clk 0:02:59.9]}
5... Qh4+ {[%clk 0:02:51.9]} 6. g3 {[%clk 0:02:59.1]} 6... Qe7 {[%clk 0:02:51]}
7. Nf3 {[%clk 0:02:58.6]} 7... Bg4 {[%clk 0:02:45.4]} 8. fxe5 {[%clk 0:02:55.3]}
8... Bxe5 {[%clk 0:02:43.8]} 9. Bxe5 {[%clk 0:02:52]} 9... Bxf3 {[%clk
0:02:42.5]} 10. Qxf3 {[%clk 0:02:52.6]} 10... Qxe5 {[%clk 0:02:42.6]} 11. Nc3
{[%clk 0:02:52.9]} 11... Nf6 {[%clk 0:02:42.1]} 12. O-O {[%clk 0:02:51.4]} 12...
O-O {[%clk 0:02:40.8]} 13. Bxc6 {[%clk 0:02:45.4]} 13... bxc6 {[%clk 0:02:40.8]}
14. Qf4 {[%clk 0:02:42]} 14... Rfe8 {[%clk 0:02:37.4]} 15. Qxe5 {[%clk
0:02:38.3]} 15... Rxe5 {[%clk 0:02:37.2]} 16. Rf4 {[%clk 0:02:39]} 16... Rae8
{[%clk 0:02:34.9]} 17. Raf1 {[%clk 0:02:38.7]} 17... h6 {[%clk 0:02:31.1]} 18.
Ra4 {[%clk 0:02:38.2]} 18... Ra8 {[%clk 0:02:26.8]} 19. Rff4 {[%clk 0:02:37.4]}
19... Nd7 {[%clk 0:02:24.7]} 20. Ra6 {[%clk 0:02:33.5]} 20... Nb8 {[%clk
0:02:23.9]} 21. Ra5 {[%clk 0:02:32.9]} 21... f6 {[%clk 0:02:19.7]} 22. Rb4
{[%clk 0:02:24.4]} 22... Re7 {[%clk 0:01:49.2]} 23. Rb7 {[%clk 0:02:06.8]} 23...
a6 {[%clk 0:01:48.6]} 24. b4 {[%clk 0:02:06.5]} 24... Kf7 {[%clk 0:01:41.6]} 25.
a4 {[%clk 0:01:53.8]} 25... Ke8 {[%clk 0:01:38.7]} 26. b5 {[%clk 0:01:53]} 26...
cxb5 {[%clk 0:01:23.6]} 27. axb5 {[%clk 0:01:50.3]} 27... c6 {[%clk 0:00:21.3]}
28. Rxe7+ {[%clk 0:01:11.1]} 28... Kxe7 {[%clk 0:00:22.2]} 29. bxc6 {[%clk
0:01:10.6]} 29... Nxc6 {[%clk 0:00:23.1]} 30. Rxd5 {[%clk 0:01:06.2]} 30... a5
{[%clk 0:00:23]} 31. Rc5 {[%clk 0:01:04.2]} 31... Kd6 {[%clk 0:00:22]} 32. Rc4
{[%clk 0:01:01.6]} 32... Ne5 {[%clk 0:00:16.6]} 33. Ra4 {[%clk 0:01:00.3]} 33...
Nf3+ {[%clk 0:00:16.3]} 34. Kf2 {[%clk 0:00:59.9]} 34... Ne5 {[%clk 0:00:16.3]}
35. Ke2 {[%clk 0:00:58]} 35... Nc6 {[%clk 0:00:13.8]} 36. d4 {[%clk 0:00:58.2]}
36... Rb8 {[%clk 0:00:13.7]} 37. Kd2 {[%clk 0:00:57.3]} 37... h5 {[%clk
0:00:12.5]} 38. h4 {[%clk 0:00:53.7]} 38... f5 {[%clk 0:00:10.7]} 39. e4 {[%clk
0:00:50.5]} 39... fxe4 {[%clk 0:00:09.2]} 40. Nxe4+ {[%clk 0:00:51.4]} 40... Kd5
{[%clk 0:00:09.9]} 41. Nc3+ {[%clk 0:00:51.7]} 41... Kd6 {[%clk 0:00:10.3]} 42.
Kd3 {[%clk 0:00:35.6]} 42... Rf8 {[%clk 0:00:09.9]} 43. d5 {[%clk 0:00:32.7]}
43... Ne5+ {[%clk 0:00:09]} 44. Ke4 {[%clk 0:00:30.5]} 44... Re8 {[%clk
0:00:08.5]} 45. Nb5+ {[%clk 0:00:29.6]} 45... Kc5 {[%clk 0:00:07.8]} 46. Nc7
{[%clk 0:00:29.8]} 46... Re7 {[%clk 0:00:07.6]} 47. Ne6+ {[%clk 0:00:30.3]}
47... Kd6 {[%clk 0:00:07.9]} 48. Rxa5 {[%clk 0:00:30.9]} 48... Nc4 {[%clk
0:00:07]} 49. Ra6+ {[%clk 0:00:30.8]} 49... Kd7 {[%clk 0:00:07.1]} 50. Ra7+
{[%clk 0:00:31.3]} 50... Kd6 {[%clk 0:00:07.6]} 51. Rxe7 {[%clk 0:00:32.2]}
51... Kxe7 {[%clk 0:00:08.5]} 52. Nxg7 {[%clk 0:00:32.8]} 52... Na3 {[%clk
0:00:04.7]} 53. c3 {[%clk 0:00:32.6]} 53... Nb5 {[%clk 0:00:04.6]} 54. c4 {[%clk
0:00:33]} 54... Nd6+ {[%clk 0:00:05.3]} 55. Kd4 {[%clk 0:00:33.3]} 55... Kf6
{[%clk 0:00:05.7]} 56. Nxh5+ {[%clk 0:00:33.7]} 56... Kg6 {[%clk 0:00:06.4]} 57.
g4 {[%clk 0:00:34]} 57... Nb7 {[%clk 0:00:04.3]} 58. c5 {[%clk 0:00:34]} 1-0

[Event "Early-Titled-Tuesday-Blitz-May-07-2024"]
[Site "Chess.com"]
[Date "2024.05.07"]
[Round "4"]
[White "ClauSanLuis"]
[Black "kemelgallo"]
[Result "0-1"]
[WhiteElo "2395"]
[BlackElo "2654"]
[TimeControl "180+1"]
[EndTime "8:42:54 PDT"]
[Termination "kemelgallo won by resignation"]

1. d4 {[%clk 0:02:55.9]} 1... d5 {[%clk 0:02:58.7]} 2. Bg5 {[%clk 0:02:54.9]}
2... Nf6 {[%clk 0:02:55.7]} 3. e3 {[%clk 0:02:53.2]} 3... c5 {[%clk 0:02:54.9]}
4. c3 {[%clk 0:02:52.2]} 4... Qb6 {[%clk 0:02:35.8]} 5. Qb3 {[%clk 0:02:48]}
5... c4 {[%clk 0:02:34.5]} 6. Qxb6 {[%clk 0:02:36.8]} 6... axb6 {[%clk
0:02:35.4]} 7. Na3 {[%clk 0:02:31.9]} 7... Bd7 {[%clk 0:02:19.3]} 8. Nc2 {[%clk
0:02:25.5]} 8... Bf5 {[%clk 0:02:15.1]} 9. Nb4 {[%clk 0:01:59.6]} 9... Nc6
{[%clk 0:02:12.7]} 10. Nxc6 {[%clk 0:01:49.4]} 10... bxc6 {[%clk 0:02:13.6]} 11.
Ne2 {[%clk 0:01:46.5]} 11... e6 {[%clk 0:02:07.9]} 12. Ng3 {[%clk 0:01:46.4]}
12... Bg6 {[%clk 0:02:07.7]} 13. Be2 {[%clk 0:01:45.8]} 13... Nd7 {[%clk
0:01:52]} 14. f4 {[%clk 0:01:26.9]} 14... f6 {[%clk 0:01:31.9]} 15. Bh4 {[%clk
0:01:26]} 15... Bd6 {[%clk 0:01:30.8]} 16. O-O {[%clk 0:01:23.3]} 16... b5
{[%clk 0:01:19.9]} 17. a3 {[%clk 0:01:20.8]} 17... Nb6 {[%clk 0:01:18.3]} 18.
Bg4 {[%clk 0:01:07.8]} 18... Ke7 {[%clk 0:01:00.8]} 19. f5 {[%clk 0:01:05.7]}
19... Bxg3 {[%clk 0:01:00.2]} 20. Bxg3 {[%clk 0:01:05.9]} 20... Bxf5 {[%clk
0:00:58]} 21. Bxf5 {[%clk 0:01:06.8]} 21... exf5 {[%clk 0:00:58.9]} 22. Rxf5
{[%clk 0:01:05]} 22... g6 {[%clk 0:00:54.5]} 23. Rf4 {[%clk 0:00:57.1]} 23... f5
{[%clk 0:00:54.6]} 24. Bh4+ {[%clk 0:00:57]} 24... Ke6 {[%clk 0:00:53.8]} 25. g4
{[%clk 0:00:57.2]} 25... Rhf8 {[%clk 0:00:53.2]} 26. Raf1 {[%clk 0:00:55.1]}
26... Nc8 {[%clk 0:00:47.6]} 27. e4 {[%clk 0:00:52.6]} 27... dxe4 {[%clk
0:00:34]} 28. Rxe4+ {[%clk 0:00:53.2]} 28... fxe4 {[%clk 0:00:32.6]} 29. Rxf8
{[%clk 0:00:51.3]} 29... Nb6 {[%clk 0:00:33.3]} 30. Rf6+ {[%clk 0:00:49.3]}
30... Kd7 {[%clk 0:00:29.8]} 31. Rf7+ {[%clk 0:00:49.5]} 31... Ke6 {[%clk
0:00:30.2]} 32. Rf6+ {[%clk 0:00:49.4]} 32... Kd7 {[%clk 0:00:27.2]} 33. Rf7+
{[%clk 0:00:49.3]} 33... Kd6 {[%clk 0:00:27.5]} 34. Rxh7 {[%clk 0:00:34]} 34...
Na4 {[%clk 0:00:27.5]} 35. Be7+ {[%clk 0:00:31.5]} 35... Ke6 {[%clk 0:00:26.7]}
36. Bb4 {[%clk 0:00:29.4]} 36... Re8 {[%clk 0:00:17.6]} 37. Rc7 {[%clk
0:00:24.6]} 37... e3 {[%clk 0:00:15.3]} 38. Kf1 {[%clk 0:00:23.5]} 38... Kd5
{[%clk 0:00:15.3]} 39. Rd7+ {[%clk 0:00:22.9]} 39... Ke4 {[%clk 0:00:15.3]} 40.
Ke2 {[%clk 0:00:21.8]} 40... Nxb2 {[%clk 0:00:15]} 41. Rd6 {[%clk 0:00:13.2]}
41... Nd3 {[%clk 0:00:14.4]} 42. Rxg6 {[%clk 0:00:11.5]} 42... Nf4+ {[%clk
0:00:14.6]} 43. Ke1 {[%clk 0:00:10.3]} 43... Nxg6 {[%clk 0:00:15.5]} 0-1

[Event "Early-Titled-Tuesday-Blitz-May-07-2024"]
[Site "Chess.com"]
[Date "2024.05.07"]
[Round "4"]
[White "Evan_Attaker"]
[Black "Slovineanu"]
[Result "1-0"]
[WhiteElo "2633"]
[BlackElo "2455"]
[TimeControl "180+1"]
[EndTime "8:42:56 PDT"]
[Termination "Evan_Attaker won by resignation"]

1. Nf3 {[%clk 0:02:28.2]} 1... Nf6 {[%clk 0:02:58]} 2. c4 {[%clk 0:02:28.6]}
2... e6 {[%clk 0:02:56.9]} 3. g3 {[%clk 0:02:27.2]} 3... d5 {[%clk 0:02:56.3]}
4. Bg2 {[%clk 0:02:27.7]} 4... Be7 {[%clk 0:02:55.4]} 5. O-O {[%clk 0:02:27.7]}
5... O-O {[%clk 0:02:55.4]} 6. d4 {[%clk 0:02:28.1]} 6... dxc4 {[%clk
0:02:55.1]} 7. Na3 {[%clk 0:02:18]} 7... Bxa3 {[%clk 0:02:53.7]} 8. bxa3 {[%clk
0:02:18.9]} 8... b5 {[%clk 0:02:52.5]} 9. a4 {[%clk 0:02:19.1]} 9... a6 {[%clk
0:02:41.8]} 10. Ba3 {[%clk 0:02:18.4]} 10... Re8 {[%clk 0:02:37.9]} 11. Ne5
{[%clk 0:02:18.2]} 11... Nd5 {[%clk 0:02:37.7]} 12. e4 {[%clk 0:02:18.2]} 12...
Nb6 {[%clk 0:02:29.2]} 13. Qh5 {[%clk 0:01:52.8]} 13... g6 {[%clk 0:02:22]} 14.
Qf3 {[%clk 0:01:50.6]} 14... f6 {[%clk 0:02:15]} 15. Ng4 {[%clk 0:01:47.9]}
15... Kg7 {[%clk 0:02:07.9]} 16. a5 {[%clk 0:01:44.4]} 16... N6d7 {[%clk
0:01:56]} 17. e5 {[%clk 0:01:44.1]} 17... Ra7 {[%clk 0:01:56.2]} 18. exf6+
{[%clk 0:01:34.9]} 18... Nxf6 {[%clk 0:01:53.9]} 19. Nxf6 {[%clk 0:01:33.1]}
19... Qxf6 {[%clk 0:01:52]} 20. Bc5 {[%clk 0:01:30.1]} 20... Qxf3 {[%clk
0:01:43.7]} 21. Bxf3 {[%clk 0:01:31]} 21... Bb7 {[%clk 0:01:43.7]} 22. Bxa7
{[%clk 0:01:23.1]} 22... Bxf3 {[%clk 0:01:43.5]} 23. Bxb8 {[%clk 0:01:19.3]}
23... Rxb8 {[%clk 0:01:43]} 24. Rfe1 {[%clk 0:01:17.2]} 24... Bd5 {[%clk
0:01:41.6]} 25. a3 {[%clk 0:00:57.2]} 25... Kf6 {[%clk 0:01:39.1]} 26. f4 {[%clk
0:00:57.3]} 26... Ke7 {[%clk 0:01:38.8]} 27. Kf2 {[%clk 0:00:56.9]} 27... Kd6
{[%clk 0:01:39]} 28. Rab1 {[%clk 0:00:34.5]} 28... c5 {[%clk 0:01:31.3]} 29.
dxc5+ {[%clk 0:00:35.4]} 29... Kxc5 {[%clk 0:01:31.3]} 30. Rb4 {[%clk
0:00:31.5]} 30... g5 {[%clk 0:01:17.3]} 31. Reb1 {[%clk 0:00:18.5]} 31... Rf8
{[%clk 0:01:10]} 32. a4 {[%clk 0:00:18.2]} 32... Bc6 {[%clk 0:01:00.2]} 33. axb5
{[%clk 0:00:18]} 33... Bxb5 {[%clk 0:00:58.8]} 34. Ke3 {[%clk 0:00:18]} 34...
gxf4+ {[%clk 0:00:56.8]} 35. gxf4 {[%clk 0:00:18.9]} 35... Rg8 {[%clk
0:00:57.1]} 36. R4b2 {[%clk 0:00:19.3]} 36... Rg4 {[%clk 0:00:40.5]} 37. Ke4
{[%clk 0:00:18.2]} 37... Bc6+ {[%clk 0:00:29.8]} 38. Ke5 {[%clk 0:00:18.3]}
38... Bd5 {[%clk 0:00:27.8]} 39. Rb6 {[%clk 0:00:13.9]} 39... c3 {[%clk
0:00:22.7]} 40. Rxa6 {[%clk 0:00:13.5]} 40... Rg2 {[%clk 0:00:19.5]} 41. Ra7
{[%clk 0:00:11.8]} 41... Re2+ {[%clk 0:00:19.2]} 42. Kf6 {[%clk 0:00:11.3]}
42... c2 {[%clk 0:00:19.6]} 43. Rc1 {[%clk 0:00:10.6]} 43... Bb3 {[%clk
0:00:18]} 44. a6 {[%clk 0:00:10.3]} 44... Rd2 {[%clk 0:00:17.4]} 45. Rb7 {[%clk
0:00:09.6]} 45... Rd1 {[%clk 0:00:16.2]} 46. a7 {[%clk 0:00:09.8]} 46... Rxc1
{[%clk 0:00:15.9]} 47. a8=Q {[%clk 0:00:10]} 47... Ra1 {[%clk 0:00:15.1]} 48.
Qxa1 {[%clk 0:00:09.5]} 1-0

[Event "Early-Titled-Tuesday-Blitz-May-07-2024"]
[Site "Chess.com"]
[Date "2024.05.07"]
[Round "4"]
[White "milovichalex"]
[Black "Felix-Rose"]
[Result "0-1"]
[WhiteElo "2347"]
[BlackElo "2212"]
[TimeControl "180+1"]
[EndTime "8:42:56 PDT"]
[Termination "Felix-Rose won by checkmate"]

1. e4 {[%clk 0:03:00.9]} 1... e5 {[%clk 0:02:59]} 2. Nf3 {[%clk 0:03:01.1]} 2...
Nc6 {[%clk 0:02:59.2]} 3. Bb5 {[%clk 0:03:00.6]} 3... a6 {[%clk 0:02:59.5]} 4.
Ba4 {[%clk 0:03:00.7]} 4... Nf6 {[%clk 0:02:59.7]} 5. O-O {[%clk 0:03:00.8]}
5... b5 {[%clk 0:02:59.2]} 6. Bb3 {[%clk 0:03:00.2]} 6... Bc5 {[%clk 0:03:00]}
7. Bd5 {[%clk 0:03:00.4]} 7... Qe7 {[%clk 0:02:47.6]} 8. c3 {[%clk 0:02:56.7]}
8... Bb6 {[%clk 0:02:46.9]} 9. d3 {[%clk 0:02:54.9]} 9... h6 {[%clk 0:02:46.3]}
10. Be3 {[%clk 0:02:47.1]} 10... Bxe3 {[%clk 0:02:43.2]} 11. fxe3 {[%clk
0:02:47.3]} 11... Nxd5 {[%clk 0:02:43]} 12. exd5 {[%clk 0:02:47]} 12... Nd8
{[%clk 0:02:41.6]} 13. e4 {[%clk 0:02:44.8]} 13... d6 {[%clk 0:02:41.1]} 14. Qe1
{[%clk 0:02:40.1]} 14... O-O {[%clk 0:02:40.3]} 15. Nh4 {[%clk 0:02:39.6]} 15...
g6 {[%clk 0:01:58.5]} 16. Nd2 {[%clk 0:02:25.9]} 16... Nb7 {[%clk 0:01:56.7]}
17. Nb3 {[%clk 0:02:16.9]} 17... Kh7 {[%clk 0:01:51]} 18. a4 {[%clk 0:02:00.7]}
18... bxa4 {[%clk 0:01:41.1]} 19. Rxa4 {[%clk 0:02:00.3]} 19... Bd7 {[%clk
0:01:41.6]} 20. Ra3 {[%clk 0:01:58.7]} 20... a5 {[%clk 0:01:42]} 21. Nf3 {[%clk
0:01:49.5]} 21... a4 {[%clk 0:01:41.2]} 22. Nbd2 {[%clk 0:01:48.9]} 22... Nc5
{[%clk 0:01:37.9]} 23. Qe3 {[%clk 0:01:48]} 23... f5 {[%clk 0:01:34]} 24. Qe2
{[%clk 0:01:31.1]} 24... Bb5 {[%clk 0:01:25]} 25. c4 {[%clk 0:01:26.1]} 25...
Bd7 {[%clk 0:01:24.3]} 26. Rfa1 {[%clk 0:01:23.1]} 26... Rab8 {[%clk 0:01:22.7]}
27. Nf1 {[%clk 0:01:18.7]} 27... fxe4 {[%clk 0:01:15.5]} 28. dxe4 {[%clk
0:01:18.4]} 28... Rf4 {[%clk 0:01:15.5]} 29. Ng3 {[%clk 0:01:15.9]} 29... h5
{[%clk 0:00:54.2]} 30. h4 {[%clk 0:00:48.5]} 30... Bg4 {[%clk 0:00:53.9]} 31.
Re1 {[%clk 0:00:37.3]} 31... Bxf3 {[%clk 0:00:50.6]} 32. Rxf3 {[%clk 0:00:36.7]}
32... Qxh4 {[%clk 0:00:46.3]} 33. Rxf4 {[%clk 0:00:36.8]} 33... Qxf4 {[%clk
0:00:36.5]} 34. Nf1 {[%clk 0:00:35.9]} 34... Rb3 {[%clk 0:00:29.5]} 35. Nh2
{[%clk 0:00:35.8]} 35... Nd3 {[%clk 0:00:11.2]} 36. Rf1 {[%clk 0:00:34.2]} 36...
Nc1 {[%clk 0:00:09]} 37. Qc2 {[%clk 0:00:23]} 37... Qe3+ {[%clk 0:00:07.3]} 38.
Kh1 {[%clk 0:00:23]} 38... Nd3 {[%clk 0:00:04.4]} 39. Nf3 {[%clk 0:00:17.6]}
39... Rxb2 {[%clk 0:00:03.9]} 40. Ng5+ {[%clk 0:00:13]} 40... Qxg5 {[%clk
0:00:03.9]} 41. Qxd3 {[%clk 0:00:12.9]} 41... Qxg2# {[%clk 0:00:04.2]} 0-1

[Event "Early-Titled-Tuesday-Blitz-May-07-2024"]
[Site "Chess.com"]
[Date "2024.05.07"]
[Round "4"]
[White "Root_21"]
[Black "RobertoJBM"]
[Result "0-1"]
[WhiteElo "2596"]
[BlackElo "2887"]
[TimeControl "180+1"]
[EndTime "8:42:58 PDT"]
[Termination "RobertoJBM won by checkmate"]

1. e4 {[%clk 0:02:49.2]} 1... c6 {[%clk 0:02:59.5]} 2. d4 {[%clk 0:02:47.8]}
2... d5 {[%clk 0:02:59.9]} 3. Nc3 {[%clk 0:02:48.2]} 3... dxe4 {[%clk
0:03:00.2]} 4. Nxe4 {[%clk 0:02:48.6]} 4... Nd7 {[%clk 0:03:00.8]} 5. Ng5 {[%clk
0:02:45]} 5... Ngf6 {[%clk 0:03:00.9]} 6. Bd3 {[%clk 0:02:44.3]} 6... e6 {[%clk
0:03:01.2]} 7. N1f3 {[%clk 0:02:43.2]} 7... Bd6 {[%clk 0:03:00.7]} 8. Qe2 {[%clk
0:02:38.1]} 8... h6 {[%clk 0:03:01.2]} 9. Ne4 {[%clk 0:02:37.9]} 9... Nxe4
{[%clk 0:03:01.1]} 10. Qxe4 {[%clk 0:02:38]} 10... Qc7 {[%clk 0:03:01.9]} 11.
Bd2 {[%clk 0:02:36.3]} 11... b6 {[%clk 0:03:02]} 12. O-O-O {[%clk 0:02:35.8]}
12... Bb7 {[%clk 0:03:02.4]} 13. Qe2 {[%clk 0:02:36.1]} 13... O-O-O {[%clk
0:03:02.3]} 14. Kb1 {[%clk 0:02:36.2]} 14... Kb8 {[%clk 0:03:02.2]} 15. c4
{[%clk 0:02:36]} 15... c5 {[%clk 0:03:01.9]} 16. Rhe1 {[%clk 0:02:31.6]} 16...
Bxf3 {[%clk 0:02:43.1]} 17. Qxf3 {[%clk 0:02:31.4]} 17... cxd4 {[%clk
0:02:43.2]} 18. Qxf7 {[%clk 0:02:12.7]} 18... Ne5 {[%clk 0:02:34.6]} 19. Qxc7+
{[%clk 0:02:11.3]} 19... Bxc7 {[%clk 0:02:35]} 20. Bf4 {[%clk 0:01:49.8]} 20...
Nxd3 {[%clk 0:02:27.9]} 21. Bxc7+ {[%clk 0:01:49.6]} 21... Kxc7 {[%clk
0:02:28.4]} 22. Rxd3 {[%clk 0:01:50.3]} 22... Rhe8 {[%clk 0:02:22]} 23. f4
{[%clk 0:01:50.4]} 23... Kc6 {[%clk 0:02:17.3]} 24. b4 {[%clk 0:01:48.1]} 24...
a5 {[%clk 0:02:16.7]} 25. a3 {[%clk 0:01:48.2]} 25... axb4 {[%clk 0:02:16.1]}
26. axb4 {[%clk 0:01:49.1]} 26... b5 {[%clk 0:02:16.6]} 27. c5 {[%clk
0:01:39.8]} 27... Kd5 {[%clk 0:02:14.2]} 28. Rc1 {[%clk 0:01:36]} 28... e5
{[%clk 0:02:04.1]} 29. fxe5 {[%clk 0:01:35.7]} 29... Kxe5 {[%clk 0:02:03.9]} 30.
c6 {[%clk 0:01:29.7]} 30... Ke4 {[%clk 0:02:04.1]} 31. Rdd1 {[%clk 0:01:18.7]}
31... Rc8 {[%clk 0:01:59.8]} 32. c7 {[%clk 0:01:09.4]} 32... Rf8 {[%clk
0:01:52.9]} 33. Re1+ {[%clk 0:01:04]} 33... Kd3 {[%clk 0:01:40.8]} 34. Re7
{[%clk 0:01:02.1]} 34... Rf2 {[%clk 0:01:32.8]} 35. Rxg7 {[%clk 0:00:59.7]}
35... Ke4 {[%clk 0:01:28.3]} 36. Re7+ {[%clk 0:00:56.5]} 36... Kd3 {[%clk
0:01:28.5]} 37. Rd7 {[%clk 0:00:53]} 37... Rff8 {[%clk 0:01:20]} 38. h4 {[%clk
0:00:48.3]} 38... h5 {[%clk 0:01:19.4]} 39. Rd5 {[%clk 0:00:41.9]} 39... Rf7
{[%clk 0:01:16.9]} 40. Rd1+ {[%clk 0:00:39.9]} 40... Kc3 {[%clk 0:01:16.3]} 41.
R1xd4 {[%clk 0:00:31.5]} 41... Rcxc7 {[%clk 0:01:09.1]} 42. Rd1 {[%clk
0:00:23.8]} 42... Kxb4 {[%clk 0:00:59.8]} 43. Rxh5 {[%clk 0:00:23.9]} 43... Rf2
{[%clk 0:00:52.8]} 44. Rd4+ {[%clk 0:00:17.7]} 44... Ka3 {[%clk 0:00:39.7]} 45.
Rd3+ {[%clk 0:00:16.9]} 45... Ka4 {[%clk 0:00:34.2]} 46. Rg5 {[%clk 0:00:13.7]}
46... Re7 {[%clk 0:00:25.9]} 47. Rd1 {[%clk 0:00:07.4]} 47... Ree2 {[%clk
0:00:25.7]} 48. Rg8 {[%clk 0:00:05]} 48... Rb2+ {[%clk 0:00:22.3]} 49. Kc1
{[%clk 0:00:05]} 49... Rfc2# {[%clk 0:00:21.7]} 0-1

[Event "Early-Titled-Tuesday-Blitz-May-07-2024"]
[Site "Chess.com"]
[Date "2024.05.07"]
[Round "4"]
[White "DACF2905"]
[Black "Aslanov_Umid"]
[Result "0-1"]
[WhiteElo "2442"]
[BlackElo "2659"]
[TimeControl "180+1"]
[EndTime "8:42:59 PDT"]
[Termination "Aslanov_Umid won by resignation"]

1. e4 {[%clk 0:03:00.9]} 1... c5 {[%clk 0:02:59.9]} 2. Nf3 {[%clk 0:03:00.3]}
2... d6 {[%clk 0:03:00.4]} 3. c3 {[%clk 0:02:56.1]} 3... Nf6 {[%clk 0:02:58.9]}
4. Be2 {[%clk 0:02:54.8]} 4... Bg4 {[%clk 0:02:58.6]} 5. h3 {[%clk 0:02:50.2]}
5... Bxf3 {[%clk 0:02:57.9]} 6. Bxf3 {[%clk 0:02:50.4]} 6... g6 {[%clk
0:02:53.4]} 7. O-O {[%clk 0:02:50]} 7... Nc6 {[%clk 0:02:52.4]} 8. d4 {[%clk
0:02:49.8]} 8... cxd4 {[%clk 0:02:53.3]} 9. cxd4 {[%clk 0:02:49.6]} 9... Bg7
{[%clk 0:02:53.9]} 10. e5 {[%clk 0:02:37.9]} 10... dxe5 {[%clk 0:02:45.4]} 11.
dxe5 {[%clk 0:02:37.6]} 11... Qxd1 {[%clk 0:02:28.3]} 12. Rxd1 {[%clk
0:02:33.3]} 12... Nd7 {[%clk 0:02:28.5]} 13. Bxc6 {[%clk 0:02:16.9]} 13... bxc6
{[%clk 0:02:28.4]} 14. f4 {[%clk 0:02:17.2]} 14... f6 {[%clk 0:02:12]} 15. exf6
{[%clk 0:02:08.3]} 15... Bxf6 {[%clk 0:01:58.2]} 16. Nc3 {[%clk 0:02:07.9]}
16... Nc5 {[%clk 0:01:54.6]} 17. Be3 {[%clk 0:02:06.8]} 17... Ne6 {[%clk
0:01:35.7]} 18. Rac1 {[%clk 0:02:03.8]} 18... Kf7 {[%clk 0:01:28.8]} 19. Ne4
{[%clk 0:01:57.6]} 19... Bxb2 {[%clk 0:01:19.4]} 20. Rxc6 {[%clk 0:01:57.4]}
20... Rhd8 {[%clk 0:01:20.1]} 21. Rxd8 {[%clk 0:01:55]} 21... Rxd8 {[%clk
0:01:21]} 22. Bxa7 {[%clk 0:01:52]} 22... Rd1+ {[%clk 0:01:11.3]} 23. Kh2 {[%clk
0:01:51.6]} 23... Nxf4 {[%clk 0:01:06.3]} 24. Ng5+ {[%clk 0:01:36.5]} 24... Ke8
{[%clk 0:00:57.6]} 25. Be3 {[%clk 0:01:22.8]} 25... Nd5 {[%clk 0:00:47]} 26. Bf2
{[%clk 0:01:13]} 26... Rd2 {[%clk 0:00:41.9]} 27. Ne4 {[%clk 0:00:45.7]} 27...
Re2 {[%clk 0:00:22.3]} 28. Rc4 {[%clk 0:00:45.6]} 28... Nf4 {[%clk 0:00:16]} 29.
Kg3 {[%clk 0:00:39.1]} 29... Be5 {[%clk 0:00:15.9]} 30. Kf3 {[%clk 0:00:36.9]}
30... Rxa2 {[%clk 0:00:16.4]} 31. Ng5 {[%clk 0:00:29]} 31... h6 {[%clk
0:00:13.1]} 32. Ne4 {[%clk 0:00:26.3]} 32... Ra3+ {[%clk 0:00:12.9]} 33. Be3
{[%clk 0:00:20.4]} 33... Nd5 {[%clk 0:00:13]} 34. Rc5 {[%clk 0:00:11.7]} 34...
Rxe3+ {[%clk 0:00:12.1]} 35. Kf2 {[%clk 0:00:08.8]} 35... Rxe4 {[%clk
0:00:12.5]} 36. Rxd5 {[%clk 0:00:08.9]} 36... Bd6 {[%clk 0:00:13.1]} 37. Kf3
{[%clk 0:00:08.8]} 37... Re6 {[%clk 0:00:13.6]} 38. g3 {[%clk 0:00:08.9]} 38...
Kf7 {[%clk 0:00:14.2]} 39. h4 {[%clk 0:00:08.1]} 39... Kf6 {[%clk 0:00:13.4]}
40. Rb5 {[%clk 0:00:07.6]} 40... Re5 {[%clk 0:00:12.3]} 41. Rb7 {[%clk
0:00:06.7]} 41... Rc5 {[%clk 0:00:11.1]} 42. g4 {[%clk 0:00:07.1]} 42... Rc3+
{[%clk 0:00:10]} 43. Ke4 {[%clk 0:00:07.1]} 43... Rc4+ {[%clk 0:00:09.9]} 0-1

[Event "Early-Titled-Tuesday-Blitz-May-07-2024"]
[Site "Chess.com"]
[Date "2024.05.07"]
[Round "4"]
[White "Darko-Dimitrijevic"]
[Black "IMGC"]
[Result "0-1"]
[WhiteElo "2259"]
[BlackElo "2493"]
[TimeControl "180+1"]
[EndTime "8:43:00 PDT"]
[Termination "IMGC won on time"]

1. c4 {[%clk 0:03:00.9]} 1... g6 {[%clk 0:02:57.3]} 2. g3 {[%clk 0:02:59]} 2...
Bg7 {[%clk 0:02:58.2]} 3. Bg2 {[%clk 0:02:58.5]} 3... c5 {[%clk 0:02:58.7]} 4.
Nc3 {[%clk 0:02:58]} 4... Nc6 {[%clk 0:02:59]} 5. a3 {[%clk 0:02:54.7]} 5... Nf6
{[%clk 0:02:53.9]} 6. d3 {[%clk 0:02:53.7]} 6... O-O {[%clk 0:02:52.7]} 7. Rb1
{[%clk 0:02:53.5]} 7... d6 {[%clk 0:02:50]} 8. b4 {[%clk 0:02:49.8]} 8... Nd7
{[%clk 0:02:21.9]} 9. Bd2 {[%clk 0:02:44.3]} 9... Nd4 {[%clk 0:01:59.7]} 10. e3
{[%clk 0:02:42]} 10... Ne6 {[%clk 0:01:58.5]} 11. Nge2 {[%clk 0:02:40.3]} 11...
Rb8 {[%clk 0:01:56.6]} 12. O-O {[%clk 0:02:36.7]} 12... b6 {[%clk 0:01:52.8]}
13. Qc2 {[%clk 0:02:28.9]} 13... Bb7 {[%clk 0:01:49.9]} 14. Nd5 {[%clk
0:02:23.1]} 14... Nc7 {[%clk 0:01:49.2]} 15. e4 {[%clk 0:02:10.5]} 15... e6
{[%clk 0:01:37.1]} 16. Ne3 {[%clk 0:02:09.6]} 16... Ne5 {[%clk 0:01:34.6]} 17.
f4 {[%clk 0:02:06.3]} 17... Nc6 {[%clk 0:01:33.4]} 18. b5 {[%clk 0:01:55]} 18...
Nd4 {[%clk 0:01:31]} 19. Nxd4 {[%clk 0:01:54.8]} 19... cxd4 {[%clk 0:01:31.9]}
20. Nd1 {[%clk 0:01:48.2]} 20... f5 {[%clk 0:01:30.6]} 21. Nf2 {[%clk
0:01:45.2]} 21... Qd7 {[%clk 0:01:16.8]} 22. a4 {[%clk 0:01:44]} 22... fxe4
{[%clk 0:00:49.7]} 23. dxe4 {[%clk 0:01:37]} 23... Rbc8 {[%clk 0:00:43.5]} 24.
Nd3 {[%clk 0:01:34.3]} 24... e5 {[%clk 0:00:38]} 25. fxe5 {[%clk 0:01:27.1]}
25... Rxf1+ {[%clk 0:00:34.5]} 26. Rxf1 {[%clk 0:01:24.2]} 26... dxe5 {[%clk
0:00:35.4]} 27. c5 {[%clk 0:01:19.1]} 27... bxc5 {[%clk 0:00:11.4]} 28. Nxc5
{[%clk 0:01:17.3]} 28... Ne6 {[%clk 0:00:11]} 29. Nxd7 {[%clk 0:00:40.2]} 29...
Rxc2 {[%clk 0:00:11.9]} 30. Bb4 {[%clk 0:00:27.8]} 30... Rc7 {[%clk 0:00:11.4]}
31. Nf6+ {[%clk 0:00:23.1]} 31... Kh8 {[%clk 0:00:11.4]} 32. Nd5 {[%clk
0:00:21.5]} 32... Rd7 {[%clk 0:00:09.4]} 33. Bh3 {[%clk 0:00:17.8]} 33... Bxd5
{[%clk 0:00:04.8]} 34. exd5 {[%clk 0:00:16.8]} 34... Rxd5 {[%clk 0:00:05.7]} 35.
Bxe6 {[%clk 0:00:15.9]} 35... Rd8 {[%clk 0:00:06.6]} 36. Rf7 {[%clk 0:00:14]}
36... d3 {[%clk 0:00:05.7]} 37. Bd2 {[%clk 0:00:10.7]} 37... e4 {[%clk
0:00:05.5]} 38. Kf2 {[%clk 0:00:10.1]} 38... Bd4+ {[%clk 0:00:05.6]} 39. Ke1
{[%clk 0:00:08.3]} 39... e3 {[%clk 0:00:05.6]} 40. Bb4 {[%clk 0:00:04.6]} 40...
Bb6 {[%clk 0:00:03.6]} 41. Rf8+ {[%clk 0:00:03.6]} 41... Rxf8 {[%clk 0:00:02.9]}
42. Bxf8 {[%clk 0:00:03]} 42... Ba5+ {[%clk 0:00:03.1]} 0-1